[Event "Open Cappelle-la-Grande"]
[Date "2025.02.18"]
[White "Petriashvili, Nikoloz"]
[Black "Bacrot, Alexandre"]
[WhiteElo "2450"]
[BlackElo "2423"]
[Round "5.5.2"]
[Result "1-0"]
[TimeControl "40/5400+30:1800+30"]

1. Nf3 {[%clk 1:30:53]} 1... d5 {[%clk 1:30:36]} 2. b3 {[%clk 1:31:22]} 2... Bf5
{[%clk 1:30:57]} 3. Bb2 {[%clk 1:29:58]} 3... Nf6 {[%clk 1:30:55]} 4. g3 {[%clk
1:30:20]} 4... e6 {[%clk 1:28:27]} 5. Bg2 {[%clk 1:29:45]} 5... Be7 {[%clk
1:26:47]} 6. c4 {[%clk 1:29:32]} 6... O-O {[%clk 1:26:10]} 7. cxd5 {[%clk
1:29:40]} 7... exd5 {[%clk 1:26:14]} 8. O-O {[%clk 1:30:06]} 8... Re8 {[%clk
1:14:43]} 9. a3 {[%clk 1:21:09]} 9... c6 {[%clk 1:12:50]} 10. d3 {[%clk
1:20:09]} 10... h6 {[%clk 1:07:20]} 11. Nbd2 {[%clk 1:15:28]} 11... Bh7 {[%clk
1:01:29]} 12. Re1 {[%clk 1:14:52]} 12... Nbd7 {[%clk 1:00:24]} 13. Rc1 {[%clk
1:10:41]} 13... Bf8 {[%clk 1:00:39]} 14. b4 {[%clk 1:00:56]} 14... a5 {[%clk
0:59:53]} 15. Bc3 {[%clk 1:01:24]} 15... axb4 {[%clk 0:56:46]} 16. axb4 {[%clk
1:01:49]} 16... Ra3 {[%clk 0:51:14]} 17. Qc2 {[%clk 0:56:46]} 17... Qa8 {[%clk
0:49:45]} 18. Nd4 {[%clk 0:51:27]} 18... Qa7 {[%clk 0:41:53]} 19. N2f3 {[%clk
0:47:54]} 19... Qb6 {[%clk 0:40:46]} 20. Rb1 {[%clk 0:47:40]} 20... Rea8 {[%clk
0:40:44]} 21. Rb2 {[%clk 0:44:53]} 21... Ra1 {[%clk 0:39:49]} 22. Bh3 {[%clk
0:44:51]} 22... Rxe1+ {[%clk 0:38:38]} 23. Bxe1 {[%clk 0:44:40]} 23... Qd8
{[%clk 0:25:41]} 24. Nb3 {[%clk 0:43:07]} 24... Bd6 {[%clk 0:25:20]} 25. Nc5
{[%clk 0:40:59]} 25... Rb8 {[%clk 0:24:57]} 26. Rb1 {[%clk 0:33:48]} 26... Qe7
{[%clk 0:24:52]} 27. Nxd7 {[%clk 0:34:12]} 27... Nxd7 {[%clk 0:25:19]} 28. Bc3
{[%clk 0:34:32]} 28... Re8 {[%clk 0:22:30]} 29. Qb2 {[%clk 0:31:45]} 29... Ne5
{[%clk 0:19:33]} 30. Nxe5 {[%clk 0:30:31]} 30... Bxe5 {[%clk 0:19:59]} 31. Bxe5
{[%clk 0:30:58]} 31... Qxe5 {[%clk 0:20:23]} 32. Qxe5 {[%clk 0:31:25]} 32...
Rxe5 {[%clk 0:20:48]} 33. Ra1 {[%clk 0:29:55]} 33... f5 {[%clk 0:20:14]} 34. Kf1
{[%clk 0:28:25]} 34... Kf7 {[%clk 0:18:24]} 35. d4 {[%clk 0:28:12]} 35... Re7
{[%clk 0:16:44]} 36. b5 {[%clk 0:28:25]} 36... cxb5 {[%clk 0:10:06]} 37. Ra5
{[%clk 0:28:13]} 37... Ke6 {[%clk 0:10:32]} 38. Rxb5 {[%clk 0:28:40]} 38... Kd6
{[%clk 0:10:59]} 39. Ke1 {[%clk 0:27:44]} 39... Kc6 {[%clk 0:10:53]} 40. Rc5+
{[%clk 0:28:01]} 40... Kd6 {[%clk 0:11:19]} 41. Rc8 {[%clk 0:25:11]} 41... Rc7
{[%clk 0:00:35]} 42. Rd8+ {[%clk 0:24:03]} 42... Rd7 {[%clk 0:28:40]} 43. Rf8
{[%clk 0:52:06]} 43... Ke7 {[%clk 0:27:04]} 44. Rb8 {[%clk 0:50:15]} 44... Bg6
{[%clk 0:26:24]} 45. Kd2 {[%clk 0:50:15]} 45... Kf6 {[%clk 0:26:41]} 46. Rc8
{[%clk 0:48:53]} 46... Bf7 {[%clk 0:26:15]} 47. Rc5 {[%clk 0:48:28]} 47... Be6
{[%clk 0:25:37]} 48. Rb5 {[%clk 0:47:23]} 48... Ke7 {[%clk 0:25:08]} 49. Rb6
{[%clk 0:47:21]} 49... Rc7 {[%clk 0:24:06]} 50. f3 {[%clk 0:43:43]} 50... Rd7
{[%clk 0:24:12]} 51. e3 {[%clk 0:43:00]} 51... g6 {[%clk 0:22:12]} 52. g4 {[%clk
0:42:35]} 52... Kf7 {[%clk 0:21:45]} 53. gxf5 {[%clk 0:38:45]} 53... gxf5 {[%clk
0:22:13]} 54. Bf1 {[%clk 0:35:23]} 54... Kf6 {[%clk 0:21:59]} 55. h4 {[%clk
0:35:23]} 55... Ke7 {[%clk 0:10:30]} 56. Ke2 {[%clk 0:31:03]} 56... Rc7 {[%clk
0:10:50]} 57. Kf2 {[%clk 0:30:57]} 57... f4 {[%clk 0:08:32]} 58. exf4 {[%clk
0:31:19]} 58... Bf5 {[%clk 0:06:43]} 59. Rxh6 {[%clk 0:29:20]} 59... Rc2+ {[%clk
0:07:07]} 60. Kg3 {[%clk 0:29:45]} 60... Rd2 {[%clk 0:06:46]} 61. Rb6 {[%clk
0:29:50]} 61... Rxd4 {[%clk 0:06:54]} 62. Rxb7+ {[%clk 0:30:15]} 62... Kf6
{[%clk 0:07:19]} 63. Rb6+ {[%clk 0:30:06]} 63... Kg7 {[%clk 0:05:54]} 64. h5
{[%clk 0:30:02]} 64... Rd1 {[%clk 0:05:34]} 65. Ba6 {[%clk 0:27:05]} 65... Rh1
{[%clk 0:05:42]} 66. Rd6 {[%clk 0:24:20]} 66... Rh3+ {[%clk 0:05:45]} 67. Kf2
{[%clk 0:24:48]} 67... Rxh5 {[%clk 0:05:36]} 68. Rxd5 {[%clk 0:24:50]} 68...
Rh2+ {[%clk 0:03:42]} 69. Kg3 {[%clk 0:24:57]} 69... Rh3+ {[%clk 0:03:56]} 70.
Kg2 {[%clk 0:25:16]} 70... Rh6 {[%clk 0:03:54]} 71. Bb7 {[%clk 0:24:30]} 71...
Rb6 {[%clk 0:04:04]} 72. Ba8 {[%clk 0:24:57]} 72... Ra6 {[%clk 0:03:45]} 73. Rd8
{[%clk 0:25:22]} 73... Rg6+ {[%clk 0:03:29]} 74. Kf2 {[%clk 0:25:43]} 74... Rf6
{[%clk 0:03:51]} 75. Rd4 {[%clk 0:25:55]} 75... Rf8 {[%clk 0:04:08]} 76. Bb7
{[%clk 0:25:55]} 76... Rf7 {[%clk 0:04:30]} 77. Rb4 {[%clk 0:26:18]} 77... Rf8
{[%clk 0:04:44]} 78. Bd5 {[%clk 0:25:44]} 78... Kf6 {[%clk 0:04:23]} 79. Be4
{[%clk 0:25:27]} 79... Kg7 {[%clk 0:02:16]} 80. Kg3 {[%clk 0:25:22]} 80... Be6
{[%clk 0:01:55]} 81. Rb5 {[%clk 0:25:38]} 81... Bf7 {[%clk 0:01:27]} 82. Rb7
{[%clk 0:25:39]} 82... Kf6 {[%clk 0:01:45]} 83. Rb6+ {[%clk 0:26:04]} 83... Kg7
{[%clk 0:01:45]} 84. f5 {[%clk 0:25:59]} 84... Bh5 {[%clk 0:01:59]} 85. Kf4
{[%clk 0:26:10]} 85... Rf6 {[%clk 0:02:25]} 86. Rb7+ {[%clk 0:26:18]} 86... Rf7
{[%clk 0:02:51]} 87. Rb1 {[%clk 0:26:40]} 87... Rf8 {[%clk 0:02:31]} 88. Kg5
{[%clk 0:26:56]} 88... Bf7 {[%clk 0:02:57]} 89. Rb7 {[%clk 0:24:09]} 89... Kg8
{[%clk 0:03:19]} 90. Bc6 {[%clk 0:20:51]} 90... Kh8 {[%clk 0:03:14]} 91. Be4
{[%clk 0:19:26]} 91... Kg8 {[%clk 0:03:40]} 92. f6 {[%clk 0:19:51]} 92... Rc8
{[%clk 0:03:23]} 93. Kh6 {[%clk 0:19:43]} 93... Kf8 {[%clk 0:03:43]} 94. f4
{[%clk 0:18:29]} 94... Bg8 {[%clk 0:01:20]} 95. Bg6 {[%clk 0:18:44]} 95... Bd5
{[%clk 0:01:02]} 96. Rh7 {[%clk 0:18:31]} 96... Rc1 {[%clk 0:01:20]} 97. Rh8+
{[%clk 0:18:46]} 97... Bg8 {[%clk 0:01:46]} 98. f7 {[%clk 0:19:02]} 98... Rh1+
{[%clk 0:02:06]} 99. Bh5 {[%clk 0:19:30]} 99... Rxh5+ {[%clk 0:02:19]} 100. Kxh5
{[%clk 0:19:59]} 100... Kxf7 {[%clk 0:02:41]} 101. Rxg8 {[%clk 0:20:25]} 1-0

[Variant "Standard"]
[Site "Europe Echecs"]

[Event "Open Cappelle-la-Grande"]
[Date "2025.02.18"]
[White "Degraeve, Remy"]
[Black "Sorensen, Hampus"]
[WhiteElo "2371"]
[BlackElo "2430"]
[Round "5.5.3"]
[Result "1/2-1/2"]
[TimeControl "40/5400+30:1800+30"]

1. e4 {[%clk 1:30:56]} 1... c5 {[%clk 1:30:32]} 2. Nf3 {[%clk 1:31:21]} 2... d6
{[%clk 1:30:53]} 3. d4 {[%clk 1:31:43]} 3... cxd4 {[%clk 1:31:15]} 4. Nxd4
{[%clk 1:32:09]} 4... Nf6 {[%clk 1:31:27]} 5. Nc3 {[%clk 1:32:33]} 5... a6
{[%clk 1:31:48]} 6. Bd3 {[%clk 1:32:13]} 6... e5 {[%clk 1:30:21]} 7. Nde2 {[%clk
1:32:37]} 7... Be7 {[%clk 1:24:30]} 8. O-O {[%clk 1:32:30]} 8... O-O {[%clk
1:23:20]} 9. Ng3 {[%clk 1:32:54]} 9... Bg4 {[%clk 1:12:45]} 10. Be2 {[%clk
1:29:30]} 10... Be6 {[%clk 1:12:25]} 11. Nd5 {[%clk 1:28:43]} 11... Nxd5 {[%clk
1:12:40]} 12. exd5 {[%clk 1:29:07]} 12... Bc8 {[%clk 1:13:08]} 13. f4 {[%clk
1:27:10]} 13... f5 {[%clk 1:03:54]} 14. Kh1 {[%clk 1:20:41]} 14... Nd7 {[%clk
0:59:29]} 15. c4 {[%clk 1:14:52]} 15... a5 {[%clk 0:56:04]} 16. Qc2 {[%clk
1:03:30]} 16... g6 {[%clk 0:53:50]} 17. Be3 {[%clk 1:01:28]} 17... Bf6 {[%clk
0:47:06]} 18. Rae1 {[%clk 0:52:24]} 18... b6 {[%clk 0:45:55]} 19. fxe5 {[%clk
0:44:31]} 19... Bxe5 {[%clk 0:39:12]} 20. Qd2 {[%clk 0:43:02]} 20... Nc5 {[%clk
0:35:57]} 21. Bg5 {[%clk 0:43:17]} 21... Bf6 {[%clk 0:34:01]} 22. Bh6 {[%clk
0:42:32]} 22... Re8 {[%clk 0:33:47]} 23. Bd1 {[%clk 0:42:01]} 23... Ra7 {[%clk
0:31:48]} 24. b3 {[%clk 0:40:48]} 24... Rxe1 {[%clk 0:28:50]} 25. Rxe1 {[%clk
0:41:13]} 25... Re7 {[%clk 0:29:11]} 26. Bc2 {[%clk 0:40:39]} 26... Qe8 {[%clk
0:22:58]} 27. Rxe7 {[%clk 0:39:52]} 27... Qxe7 {[%clk 0:22:33]} 28. Qe3 {[%clk
0:39:24]} 28... Kf7 {[%clk 0:19:43]} 29. Kg1 {[%clk 0:35:38]} 29... Ba6 {[%clk
0:17:03]} 30. Qxe7+ {[%clk 0:30:04]} 30... Kxe7 {[%clk 0:17:16]} 31. Be3 {[%clk
0:21:07]} 31... b5 {[%clk 0:16:16]} 32. cxb5 {[%clk 0:21:33]} 32... Bxb5 {[%clk
0:16:37]} 33. Nf1 {[%clk 0:17:40]} 33... Na6 {[%clk 0:14:06]} 34. a4 {[%clk
0:10:26]} 34... Bxf1 {[%clk 0:09:52]} 35. Kxf1 {[%clk 0:10:23]} 35... Nb4 {[%clk
0:10:16]} 36. Bd1 {[%clk 0:10:48]} 36... Nxd5 {[%clk 0:10:17]} 37. Bd2 {[%clk
0:11:13]} 37... Bc3 {[%clk 0:09:57]} 38. Bf3 {[%clk 0:11:38]} 38... Bxd2 {[%clk
0:10:21]} 39. Bxd5 {[%clk 0:12:03]} 39... Kf6 {[%clk 0:10:34]} 40. Ke2 {[%clk
0:12:22]} 40... Bb4 {[%clk 0:10:57]} 41. Kd3 {[%clk 0:12:47]} 41... Ke5 {[%clk
0:11:15]} 42. Kc4 {[%clk 0:12:23]} 42... g5 {[%clk 0:10:36]} 43. h3 {[%clk
0:12:06]} 43... h5 {[%clk 0:08:24]} 44. Bb7 {[%clk 0:12:13]} 44... g4 {[%clk
0:06:33]} 45. hxg4 {[%clk 0:12:39]} 45... hxg4 {[%clk 0:06:56]} 46. Bc6 {[%clk
0:13:04]} 46... f4 {[%clk 0:07:10]} 47. Bb7 {[%clk 0:13:17]} 47... f3 {[%clk
0:07:06]} 48. gxf3 {[%clk 0:13:42]} 48... g3 {[%clk 0:07:32]} 49. f4+ {[%clk
0:14:05]} 49... Kxf4 {[%clk 0:07:59]} 50. Kd3 {[%clk 0:14:29]} 50... Ke5 {[%clk
0:07:47]} 1/2-1/2

[Variant "Standard"]
[Site "Europe Echecs"]

[Event "Open Cappelle-la-Grande"]
[Date "2025.02.18"]
[White "Zienkiewicz, Jan"]
[Black "Tahay, Alexis"]
[WhiteElo "2345"]
[BlackElo "2386"]
[Round "5.5.4"]
[Result "0-1"]
[TimeControl "40/5400+30:1800+30"]

1. e4 {[%clk 1:30:57]} 1... c5 {[%clk 1:29:58]} 2. Nf3 {[%clk 1:31:12]} 2... d6
{[%clk 1:30:23]} 3. d4 {[%clk 1:31:32]} 3... cxd4 {[%clk 1:30:49]} 4. Nxd4
{[%clk 1:31:56]} 4... Nf6 {[%clk 1:31:16]} 5. Nc3 {[%clk 1:32:20]} 5... a6
{[%clk 1:31:43]} 6. h3 {[%clk 1:32:35]} 6... e5 {[%clk 1:32:00]} 7. Nf3 {[%clk
1:32:38]} 7... h6 {[%clk 1:32:08]} 8. g4 {[%clk 1:32:47]} 8... b5 {[%clk
1:32:21]} 9. a4 {[%clk 1:28:16]} 9... b4 {[%clk 1:29:36]} 10. Nd5 {[%clk
1:28:17]} 10... Nbd7 {[%clk 1:27:08]} 11. Be3 {[%clk 1:21:37]} 11... Bb7 {[%clk
1:20:02]} 12. Bc4 {[%clk 1:20:12]} 12... Be7 {[%clk 1:16:31]} 13. Qd3 {[%clk
1:07:23]} 13... O-O {[%clk 1:15:56]} 14. O-O-O {[%clk 0:51:44]} 14... Rc8 {[%clk
1:01:33]} 15. Rhg1 {[%clk 0:47:39]} 15... Bxd5 {[%clk 0:57:35]} 16. Bxd5 {[%clk
0:47:26]} 16... Nxd5 {[%clk 0:57:27]} 17. exd5 {[%clk 0:46:58]} 17... Qa5 {[%clk
0:50:15]} 18. Qb3 {[%clk 0:31:09]} 18... Nc5 {[%clk 0:47:16]} 19. Bxc5 {[%clk
0:31:32]} 19... Qxc5 {[%clk 0:47:29]} 20. Rg2 {[%clk 0:30:44]} 20... Qc4 {[%clk
0:45:31]} 21. Nd2 {[%clk 0:23:39]} 21... Bg5 {[%clk 0:28:32]} 22. Kb1 {[%clk
0:23:19]} 22... Bxd2 {[%clk 0:26:48]} 23. Qxc4 {[%clk 0:23:41]} 23... Rxc4
{[%clk 0:27:16]} 24. Rxd2 {[%clk 0:24:10]} 24... Kh7 {[%clk 0:24:12]} 25. Ka2
{[%clk 0:21:34]} 25... f5 {[%clk 0:20:48]} 26. Kb3 {[%clk 0:20:52]} 26... Rf4
{[%clk 0:21:09]} 27. a5 {[%clk 0:16:16]} 27... fxg4 {[%clk 0:17:39]} 28. Rxg4
{[%clk 0:16:24]} 28... Rxg4 {[%clk 0:16:17]} 29. hxg4 {[%clk 0:16:53]} 29... Rf4
{[%clk 0:16:42]} 30. c4 {[%clk 0:09:23]} 30... bxc3 {[%clk 0:16:47]} 31. Kxc3
{[%clk 0:08:39]} 31... Rxg4 {[%clk 0:13:22]} 32. b4 {[%clk 0:08:53]} 32... h5
{[%clk 0:13:15]} 33. Ra2 {[%clk 0:07:03]} 33... h4 {[%clk 0:13:28]} 34. b5
{[%clk 0:05:55]} 34... h3 {[%clk 0:11:54]} 35. Ra1 {[%clk 0:03:14]} 35... axb5
{[%clk 0:11:50]} 36. a6 {[%clk 0:03:16]} 36... Ra4 {[%clk 0:09:54]} 37. Rxa4
{[%clk 0:03:13]} 37... bxa4 {[%clk 0:10:21]} 38. a7 {[%clk 0:03:39]} 38... h2
{[%clk 0:10:48]} 39. a8=Q {[%clk 0:04:02]} 39... h1=Q {[%clk 0:11:13]} 40. Qxa4
{[%clk 0:00:43]} 40... Qf3+ {[%clk 0:11:24]} 41. Kc2 {[%clk 0:24:21]} 41...
Qxf2+ {[%clk 0:41:37]} 42. Kb1 {[%clk 0:23:22]} 42... Qe1+ {[%clk 0:38:27]} 43.
Kc2 {[%clk 0:22:44]} 43... Qe2+ {[%clk 0:38:47]} 44. Kc1 {[%clk 0:22:20]} 44...
Qe3+ {[%clk 0:39:08]} 45. Kc2 {[%clk 0:22:32]} 45... Qc5+ {[%clk 0:37:33]} 46.
Kb1 {[%clk 0:22:54]} 46... Qxd5 {[%clk 0:37:09]} 47. Qh4+ {[%clk 0:23:11]} 47...
Kg8 {[%clk 0:37:38]} 48. Qd8+ {[%clk 0:23:33]} 48... Kf7 {[%clk 0:38:02]} 49.
Qd7+ {[%clk 0:23:46]} 49... Kf6 {[%clk 0:38:04]} 50. Qd8+ {[%clk 0:23:59]} 50...
Kg6 {[%clk 0:38:22]} 51. Qe8+ {[%clk 0:24:07]} 51... Qf7 {[%clk 0:38:43]} 52.
Qc6 {[%clk 0:24:27]} 52... Qe6 {[%clk 0:37:23]} 53. Qg2+ {[%clk 0:24:46]} 53...
Kf6 {[%clk 0:37:45]} 54. Ka1 {[%clk 0:25:04]} 54... e4 {[%clk 0:37:31]} 55. Qf2+
{[%clk 0:25:25]} 55... Qf5 {[%clk 0:37:46]} 56. Qh4+ {[%clk 0:25:50]} 56... Kf7
{[%clk 0:37:45]} 57. Qh1 {[%clk 0:25:36]} 57... e3 {[%clk 0:35:22]} 58. Qb7+
{[%clk 0:25:14]} 58... Kf6 {[%clk 0:35:35]} 59. Qb8 {[%clk 0:24:30]} 59... Qe5+
{[%clk 0:35:50]} 60. Ka2 {[%clk 0:24:55]} 60... Qe6+ {[%clk 0:35:51]} 61. Kb2
{[%clk 0:25:14]} 61... e2 {[%clk 0:36:08]} 62. Qf8+ {[%clk 0:25:32]} 62... Kg6
{[%clk 0:36:36]} 63. Qf3 {[%clk 0:25:36]} 63... e1=Q {[%clk 0:36:27]} 64. Qg2+
{[%clk 0:25:42]} 64... Kf7 {[%clk 0:36:48]} 0-1

[Variant "Standard"]
[Site "Europe Echecs"]

[Event "Open Cappelle-la-Grande"]
[Date "2025.02.18"]
[White "Suleymenov, Alisher"]
[Black "Travadon, Loic"]
[WhiteElo "2481"]
[BlackElo "2401"]
[Round "5.5.5"]
[Result "1-0"]
[TimeControl "40/5400+30:1800+30"]

1. d4 {[%clk 1:30:58]} 1... Nf6 {[%clk 1:30:45]} 2. c4 {[%clk 1:31:23]} 2... e6
{[%clk 1:31:10]} 3. Nc3 {[%clk 1:31:48]} 3... d5 {[%clk 1:31:35]} 4. Bg5 {[%clk
1:32:11]} 4... Be7 {[%clk 1:26:49]} 5. e3 {[%clk 1:32:30]} 5... O-O {[%clk
1:26:28]} 6. Nf3 {[%clk 1:32:55]} 6... Nbd7 {[%clk 1:26:40]} 7. Rc1 {[%clk
1:32:55]} 7... c6 {[%clk 1:22:43]} 8. cxd5 {[%clk 1:33:09]} 8... exd5 {[%clk
1:22:13]} 9. Bd3 {[%clk 1:33:32]} 9... Re8 {[%clk 1:19:40]} 10. O-O {[%clk
1:33:50]} 10... Ne4 {[%clk 1:15:15]} 11. Bf4 {[%clk 1:21:37]} 11... Nxc3 {[%clk
1:09:16]} 12. bxc3 {[%clk 1:21:58]} 12... Nf8 {[%clk 1:09:30]} 13. c4 {[%clk
1:07:56]} 13... Ng6 {[%clk 1:09:40]} 14. Bg3 {[%clk 1:07:59]} 14... Ba3 {[%clk
0:55:18]} 15. Rb1 {[%clk 1:05:42]} 15... Bd6 {[%clk 0:55:02]} 16. cxd5 {[%clk
1:05:15]} 16... Bxg3 {[%clk 0:54:57]} 17. hxg3 {[%clk 1:02:05]} 17... Qxd5
{[%clk 0:54:29]} 18. Qc2 {[%clk 1:01:18]} 18... Re7 {[%clk 0:49:46]} 19. Rb2
{[%clk 0:52:57]} 19... b6 {[%clk 0:47:32]} 20. e4 {[%clk 0:48:40]} 20... Qd7
{[%clk 0:45:01]} 21. a4 {[%clk 0:46:26]} 21... Bb7 {[%clk 0:44:10]} 22. Ra1
{[%clk 0:37:49]} 22... Rd8 {[%clk 0:41:20]} 23. a5 {[%clk 0:37:44]} 23... b5
{[%clk 0:41:45]} 24. a6 {[%clk 0:37:47]} 24... Bc8 {[%clk 0:41:55]} 25. e5
{[%clk 0:35:08]} 25... Qc7 {[%clk 0:40:05]} 26. Be4 {[%clk 0:32:14]} 26... c5
{[%clk 0:39:01]} 27. dxc5 {[%clk 0:31:19]} 27... Nxe5 {[%clk 0:39:02]} 28. Rxb5
{[%clk 0:31:19]} 28... Nxf3+ {[%clk 0:38:01]} 29. gxf3 {[%clk 0:30:10]} 29... h5
{[%clk 0:36:16]} 30. c6 {[%clk 0:20:13]} 30... h4 {[%clk 0:36:06]} 31. g4 {[%clk
0:20:19]} 31... Qf4 {[%clk 0:34:42]} 32. Rb7 {[%clk 0:18:50]} 32... Re5 {[%clk
0:29:04]} 33. Qc4 {[%clk 0:15:07]} 33... Qf6 {[%clk 0:27:46]} 34. Re1 {[%clk
0:11:08]} 34... g6 {[%clk 0:26:43]} 35. Rxa7 {[%clk 0:08:35]} 35... Rg5 {[%clk
0:23:58]} 36. c7 {[%clk 0:06:23]} 36... Re8 {[%clk 0:22:27]} 37. Ra8 {[%clk
0:06:24]} 37... Kg7 {[%clk 0:21:01]} 38. Rxc8 {[%clk 0:06:21]} 38... Rxc8 {[%clk
0:21:24]} 39. Bb7 {[%clk 0:06:31]} 39... h3 {[%clk 0:21:48]} 40. Bxc8 {[%clk
0:01:39]} 40... Qxf3 {[%clk 0:22:10]} 41. Qd4+ {[%clk 0:01:06]} 41... Kh7 {[%clk
0:21:21]} 42. Bb7 {[%clk 0:30:16]} 42... Rxg4+ {[%clk 0:50:14]} 43. Qxg4 {[%clk
0:29:26]} 43... Qxg4+ {[%clk 0:49:41]} 44. Kh1 {[%clk 0:29:50]} 44... Qb4 {[%clk
0:50:06]} 45. Rc1 {[%clk 0:29:58]} 1-0

[Variant "Standard"]
[Site "Europe Echecs"]

[Event "Open Cappelle-la-Grande"]
[Date "2025.02.18"]
[White "Houriez, Clement"]
[Black "Karthik Venkataraman"]
[WhiteElo "2276"]
[BlackElo "2600"]
[Round "5.5.6"]
[Result "0-1"]
[TimeControl "40/5400+30:1800+30"]

1. d4 {[%clk 1:29:40]} 1... Nf6 {[%clk 1:30:34]} 2. Nf3 {[%clk 1:29:53]} 2... d6
{[%clk 1:30:01]} 3. c4 {[%clk 1:29:59]} 3... g6 {[%clk 1:30:22]} 4. g3 {[%clk
1:30:26]} 4... Bg7 {[%clk 1:28:37]} 5. Bg2 {[%clk 1:29:22]} 5... O-O {[%clk
1:28:59]} 6. Nc3 {[%clk 1:29:39]} 6... c6 {[%clk 1:27:26]} 7. O-O {[%clk
1:26:39]} 7... Bf5 {[%clk 1:27:50]} 8. Ne1 {[%clk 1:18:24]} 8... e5 {[%clk
1:27:21]} 9. d5 {[%clk 1:18:32]} 9... a5 {[%clk 1:27:38]} 10. e4 {[%clk
1:05:36]} 10... Bg4 {[%clk 1:26:51]} 11. f3 {[%clk 1:03:27]} 11... Bc8 {[%clk
1:16:35]} 12. Be3 {[%clk 1:03:18]} 12... Na6 {[%clk 1:16:58]} 13. Nd3 {[%clk
1:01:13]} 13... h5 {[%clk 1:12:15]} 14. a3 {[%clk 0:51:52]} 14... cxd5 {[%clk
1:09:51]} 15. cxd5 {[%clk 0:50:59]} 15... Bd7 {[%clk 1:03:10]} 16. a4 {[%clk
0:41:30]} 16... b6 {[%clk 1:00:47]} 17. Rf2 {[%clk 0:39:41]} 17... h4 {[%clk
0:59:50]} 18. Nb5 {[%clk 0:36:00]} 18... hxg3 {[%clk 0:51:32]} 19. hxg3 {[%clk
0:36:28]} 19... Qb8 {[%clk 0:51:21]} 20. Rc2 {[%clk 0:33:59]} 20... Nc5 {[%clk
0:51:37]} 21. Nxc5 {[%clk 0:30:15]} 21... bxc5 {[%clk 0:52:01]} 22. Nxd6 {[%clk
0:28:58]} 22... Qxd6 {[%clk 0:51:53]} 23. Bxc5 {[%clk 0:29:26]} 23... Qb8 {[%clk
0:52:07]} 24. Bxf8 {[%clk 0:29:54]} 24... Bxf8 {[%clk 0:52:27]} 25. Bf1 {[%clk
0:22:33]} 25... Kg7 {[%clk 0:48:05]} 26. Bc4 {[%clk 0:18:49]} 26... Bb4 {[%clk
0:45:28]} 27. Qd3 {[%clk 0:18:14]} 27... Qb6+ {[%clk 0:38:46]} 28. Kg2 {[%clk
0:15:12]} 28... Rh8 {[%clk 0:38:54]} 29. Rh1 {[%clk 0:14:21]} 29... Rxh1 {[%clk
0:39:20]} 30. Kxh1 {[%clk 0:14:49]} 30... Bxa4 {[%clk 0:39:45]} 31. b3 {[%clk
0:14:45]} 31... Bd7 {[%clk 0:40:13]} 32. Kg2 {[%clk 0:13:18]} 32... Nh5 {[%clk
0:39:02]} 33. Rc1 {[%clk 0:09:50]} 33... Bc5 {[%clk 0:35:37]} 34. d6 {[%clk
0:08:16]} 34... Bd4 {[%clk 0:35:59]} 35. f4 {[%clk 0:05:30]} 35... Qxd6 {[%clk
0:31:13]} 36. fxe5 {[%clk 0:05:58]} 36... Qxe5 {[%clk 0:31:38]} 37. Rd1 {[%clk
0:06:17]} 37... Bb6 {[%clk 0:31:48]} 38. Bxf7 {[%clk 0:03:17]} 38... Bg4 {[%clk
0:31:07]} 0-1

[Variant "Standard"]
[Site "Europe Echecs"]

[Event "Open Cappelle-la-Grande"]
[Date "2025.02.18"]
[White "Pranesh M"]
[Black "Eugene, Nathael"]
[WhiteElo "2586"]
[BlackElo "2276"]
[Round "5.5.7"]
[Result "1-0"]
[TimeControl "40/5400+30:1800+30"]

1. e4 {[%clk 1:30:56]} 1... c5 {[%clk 1:22:06]} 2. Nc3 {[%clk 1:31:11]} 2... Nc6
{[%clk 1:22:28]} 3. Nge2 {[%clk 1:31:31]} 3... Nf6 {[%clk 1:22:31]} 4. d4 {[%clk
1:31:50]} 4... cxd4 {[%clk 1:22:55]} 5. Nxd4 {[%clk 1:32:16]} 5... e6 {[%clk
1:23:20]} 6. Ndb5 {[%clk 1:31:31]} 6... d6 {[%clk 1:22:32]} 7. Bf4 {[%clk
1:31:36]} 7... e5 {[%clk 1:22:56]} 8. Bg5 {[%clk 1:32:01]} 8... a6 {[%clk
1:23:23]} 9. Na3 {[%clk 1:32:22]} 9... b5 {[%clk 1:23:43]} 10. Nd5 {[%clk
1:32:14]} 10... Be7 {[%clk 1:24:06]} 11. Bxf6 {[%clk 1:32:39]} 11... Bxf6 {[%clk
1:24:31]} 12. c3 {[%clk 1:33:04]} 12... Ne7 {[%clk 1:24:56]} 13. Nxf6+ {[%clk
1:33:16]} 13... gxf6 {[%clk 1:25:24]} 14. Nc2 {[%clk 1:33:29]} 14... Bb7 {[%clk
1:25:49]} 15. Bd3 {[%clk 1:33:28]} 15... d5 {[%clk 1:26:14]} 16. Qe2 {[%clk
1:33:16]} 16... f5 {[%clk 1:14:51]} 17. exf5 {[%clk 1:31:15]} 17... e4 {[%clk
1:15:05]} 18. f6 {[%clk 1:31:25]} 18... Ng6 {[%clk 1:15:02]} 19. Qe3 {[%clk
1:31:25]} 19... Qxf6 {[%clk 1:12:17]} 20. Be2 {[%clk 1:30:27]} 20... Rg8 {[%clk
0:42:32]} 21. O-O-O {[%clk 1:25:07]} 21... Ne5 {[%clk 0:34:43]} 22. g3 {[%clk
1:20:53]} 22... Qe7 {[%clk 0:33:28]} 23. Rhe1 {[%clk 1:15:25]} 23... Rg6 {[%clk
0:31:31]} 24. f4 {[%clk 1:10:25]} 24... Nd7 {[%clk 0:30:32]} 25. Qd4 {[%clk
1:07:17]} 25... Nf8 {[%clk 0:28:53]} 26. a4 {[%clk 1:00:30]} 26... bxa4 {[%clk
0:27:06]} 27. Qxa4+ {[%clk 1:00:40]} 27... Qd7 {[%clk 0:27:17]} 28. Qa5 {[%clk
1:00:01]} 28... Qd8 {[%clk 0:25:17]} 29. Qa2 {[%clk 0:57:21]} 29... Rd6 {[%clk
0:25:00]} 30. Bg4 {[%clk 0:52:44]} 30... Ng6 {[%clk 0:23:44]} 31. Qa4+ {[%clk
0:51:15]} 31... Kf8 {[%clk 0:24:01]} 32. Rxe4 {[%clk 0:48:24]} 32... f5 {[%clk
0:18:39]} 33. Bxf5 {[%clk 0:47:35]} 33... dxe4 {[%clk 0:19:02]} 34. Qb4 {[%clk
0:47:25]} 34... Ke7 {[%clk 0:19:25]} 35. Qxb7+ {[%clk 0:47:24]} 35... Kf6 {[%clk
0:19:53]} 36. Rxd6+ {[%clk 0:47:46]} 36... Qxd6 {[%clk 0:20:16]} 37. Bxg6 {[%clk
0:47:29]} 37... Rf8 {[%clk 0:20:16]} 38. Bxe4 {[%clk 0:47:46]} 38... Qc5 {[%clk
0:20:30]} 39. Nd4 {[%clk 0:48:00]} 39... Rc8 {[%clk 0:20:38]} 40. Qxa6+ {[%clk
0:47:59]} 40... Kf7 {[%clk 0:21:00]} 41. Qe6+ {[%clk 0:48:20]} 41... Kf8 {[%clk
0:21:24]} 42. Qf6+ {[%clk 0:48:16]} 42... Kg8 {[%clk 0:21:44]} 43. Bf5 {[%clk
0:48:41]} 1-0

[Variant "Standard"]
[Site "Europe Echecs"]